[Event "Titled Tuesday Blitz March 07 Late 2023"]
[White "Skaric, Djuro"]
[Black "Preotu, Razvan"]
[WhiteFideId "934569"]
[BlackFideId "2613280"]
[WhiteElo "2282"]
[BlackElo "2407"]
[Result "0-1"]
[Round "02"]
[TimeControl "180+2"]
[Date "2023.03.07"]
[WhiteClock "0:01:01"]
[BlackClock "0:00:08"]

1. g3 {[%clk 0:03:00]}  c5 {[%clk 0:02:57]} 2. Bg2 {[%clk 0:03:00]}  Nc6 {[%clk 0:02:58]} 3. d3 {[%clk 0:03:01]}  d5 {[%clk 0:02:58]} 4. Nc3 {[%clk 0:03:01]}  d4 {[%clk 0:02:58]} 5. Ne4 {[%clk 0:03:00]}  e5 {[%clk 0:02:57]} 6. Nf3 {[%clk 0:02:59]}  Be7 {[%clk 0:02:56]} 7. O-O {[%clk 0:02:58]}  f5 {[%clk 0:02:51]} 8. Ned2 {[%clk 0:02:58]}  Be6 {[%clk 0:02:50]} 9. c3 {[%clk 0:02:58]}  Nf6 {[%clk 0:02:50]} 10. cxd4 {[%clk 0:02:57]}  exd4 {[%clk 0:02:48]} 11. Ng5 {[%clk 0:02:56]}  Bd5 {[%clk 0:02:48]} 12. Ndf3 {[%clk 0:02:55]}  h6 {[%clk 0:02:47]} 13. Nh3 {[%clk 0:02:55]}  g5 {[%clk 0:02:47]} 14. Nd2 {[%clk 0:02:49]}  Bxg2 {[%clk 0:02:39]} 15. Kxg2 {[%clk 0:02:49]}  Qd5+ {[%clk 0:02:40]} 16. Kg1 {[%clk 0:02:49]}  O-O-O {[%clk 0:02:38]} 17. Nc4 {[%clk 0:02:40]}  f4 {[%clk 0:02:34]} 18. e4 {[%clk 0:02:25]}  dxe3 {[%clk 0:02:31]} 19. fxe3 {[%clk 0:02:23]}  fxg3 {[%clk 0:02:29]} 20. hxg3 {[%clk 0:02:16]}  Qxd3 {[%clk 0:02:25]} 21. Qxd3 {[%clk 0:02:07]}  Rxd3 {[%clk 0:02:26]} 22. b3 {[%clk 0:02:05]}  Ne4 {[%clk 0:01:54]} 23. Bb2 {[%clk 0:02:02]}  Rhd8 {[%clk 0:01:43]} 24. Kg2 {[%clk 0:01:48]}  b5 {[%clk 0:01:21]} 25. Ne5 {[%clk 0:01:47]}  Nxe5 {[%clk 0:01:21]} 26. Bxe5 {[%clk 0:01:47]}  Rxe3 {[%clk 0:01:22]} 27. Rae1 {[%clk 0:01:45]}  Rd2+ {[%clk 0:01:21]} 28. Kh1 {[%clk 0:01:40]}  Nxg3+ {[%clk 0:00:54]} 29. Bxg3 {[%clk 0:01:37]}  Rxg3 {[%clk 0:00:55]} 30. Rxe7 {[%clk 0:01:36]}  Rxh3+ {[%clk 0:00:55]} 31. Kg1 {[%clk 0:01:37]}  Rg3+ {[%clk 0:00:56]} 32. Kh1 {[%clk 0:01:37]}  Rd7 {[%clk 0:00:56]} 33. Re5 {[%clk 0:01:33]}  Rc3 {[%clk 0:00:52]} 34. Rf6 {[%clk 0:01:31]}  Rc2 {[%clk 0:00:50]} 35. Re1 {[%clk 0:01:27]}  Kc7 {[%clk 0:00:42]} 36. Rxh6 {[%clk 0:01:27]}  Rxa2 {[%clk 0:00:26]} 37. Rg6 {[%clk 0:01:26]}  Rb2 {[%clk 0:00:17]} 38. Rxg5 {[%clk 0:01:19]}  Rxb3 {[%clk 0:00:17]} 39. Rxc5+ {[%clk 0:01:19]}  Kb6 {[%clk 0:00:18]} 40. Rc8 {[%clk 0:01:17]}  a5 {[%clk 0:00:05]} 41. Re6+ {[%clk 0:01:16]}  Kb7 {[%clk 0:00:05]} 42. Ree8 {[%clk 0:01:15]}  a4 {[%clk 0:00:05]} 43. Ra8 {[%clk 0:01:14]}  Kc6 {[%clk 0:00:05]} 44. Re6+ {[%clk 0:01:11]}  Kc5 {[%clk 0:00:05]} 45. Rc8+ {[%clk 0:01:11]}  Kb4 {[%clk 0:00:06]} 46. Re5 {[%clk 0:01:11]}  Ka3 {[%clk 0:00:06]} 47. Rb8 {[%clk 0:01:10]}  b4 {[%clk 0:00:06]} 48. Reb5 {[%clk 0:01:08]}  Rd2 {[%clk 0:00:05]} 49. Rg5 {[%clk 0:01:04]}  Rb1+ {[%clk 0:00:06]} 50. Rg1 {[%clk 0:01:04]}  Rxg1+ {[%clk 0:00:06]} 51. Kxg1 {[%clk 0:01:04]}  b3 {[%clk 0:00:07]} 52. Kf1 {[%clk 0:01:05]}  b2 {[%clk 0:00:08]} 53. Ke1 {[%clk 0:01:04]}  Rd3 {[%clk 0:00:08]} 54. Ke2 {[%clk 0:01:02]}  Rb3 {[%clk 0:00:08]} 55. Rb7 {[%clk 0:01:01]}  Rxb7 {[%clk 0:00:08]} 0-1


[Site "https://www.chess.com"]

[Event "Titled Tuesday Blitz March 07 Late 2023"]
[White "Hernandez Gonzalez, William"]
[Black "Rose, Felix"]
[WhiteFideId "3509915"]
[BlackFideId "5105722"]
[WhiteElo "2374"]
[BlackElo "2039"]
[Result "1-0"]
[Round "02"]
[TimeControl "180+2"]
[Date "2023.03.07"]
[WhiteClock "0:00:51"]
[BlackClock "0:00:09"]

1. d4 {[%clk 0:03:00]}  d5 {[%clk 0:02:59]} 2. c4 {[%clk 0:02:58]}  e6 {[%clk 0:03:00]} 3. Nf3 {[%clk 0:02:57]}  Nf6 {[%clk 0:03:00]} 4. g3 {[%clk 0:02:57]}  dxc4 {[%clk 0:03:00]} 5. Bg2 {[%clk 0:02:56]}  a6 {[%clk 0:03:01]} 6. a4 {[%clk 0:02:55]}  Nc6 {[%clk 0:03:01]} 7. O-O {[%clk 0:02:55]}  Rb8 {[%clk 0:03:01]} 8. Nc3 {[%clk 0:02:41]}  Be7 {[%clk 0:02:52]} 9. e4 {[%clk 0:02:25]}  O-O {[%clk 0:02:51]} 10. e5 {[%clk 0:02:22]}  Nd5 {[%clk 0:02:50]} 11. Qc2 {[%clk 0:02:21]}  Ncb4 {[%clk 0:02:41]} 12. Qe2 {[%clk 0:02:17]}  b5 {[%clk 0:02:37]} 13. axb5 {[%clk 0:02:14]}  axb5 {[%clk 0:02:35]} 14. Ne4 {[%clk 0:02:11]}  Bb7 {[%clk 0:02:25]} 15. Bg5 {[%clk 0:02:02]}  h6 {[%clk 0:01:59]} 16. Bxe7 {[%clk 0:01:59]}  Nxe7 {[%clk 0:01:52]} 17. Rfd1 {[%clk 0:01:58]}  Ra8 {[%clk 0:01:35]} 18. Rxa8 {[%clk 0:01:43]}  Qxa8 {[%clk 0:01:34]} 19. Nc5 {[%clk 0:01:44]}  Bd5 {[%clk 0:01:29]} 20. h4 {[%clk 0:01:37]}  Nf5 {[%clk 0:01:26]} 21. g4 {[%clk 0:01:33]}  Ne7 {[%clk 0:00:56]} 22. h5 {[%clk 0:01:28]}  f5 {[%clk 0:00:51]} 23. Nh4 {[%clk 0:01:17]}  Bxg2 {[%clk 0:00:32]} 24. Nxg2 {[%clk 0:01:12]}  Qc6 {[%clk 0:00:16]} 25. Nf4 {[%clk 0:01:02]}  fxg4 {[%clk 0:00:16]} 26. Qxg4 {[%clk 0:01:00]}  Nd3 {[%clk 0:00:10]} 27. Nfxe6 {[%clk 0:00:51]}  Nxc5 {[%clk 0:00:09]} 28. Qxg7# {[%clk 0:00:51]} 1-0


[Site "https://www.chess.com"]

[Event "Titled Tuesday Blitz March 07 Late 2023"]
[White "Kramnik, Vladimir"]
[Black "Gurevich, Ilya"]
[WhiteFideId "4101588"]
[BlackFideId "2000628"]
[WhiteElo "2712"]
[BlackElo "2152"]
[Result "1-0"]
[Round "02"]
[TimeControl "180+2"]
[Date "2023.03.07"]
[WhiteClock "0:00:52"]
[BlackClock "0:00:02"]

1. d4 {[%clk 0:03:00]}  Nf6 {[%clk 0:02:59]} 2. Nf3 {[%clk 0:03:00]}  g6 {[%clk 0:03:00]} 3. Bg5 {[%clk 0:02:59]}  Bg7 {[%clk 0:03:00]} 4. Nbd2 {[%clk 0:02:58]}  d5 {[%clk 0:03:00]} 5. e3 {[%clk 0:02:57]}  O-O {[%clk 0:03:00]} 6. Bd3 {[%clk 0:02:55]}  c5 {[%clk 0:03:01]} 7. c3 {[%clk 0:02:54]}  b6 {[%clk 0:03:01]} 8. O-O {[%clk 0:02:54]}  Bb7 {[%clk 0:03:01]} 9. a4 {[%clk 0:02:53]}  a5 {[%clk 0:03:01]} 10. Qb1 {[%clk 0:02:51]}  Nbd7 {[%clk 0:02:57]} 11. Rd1 {[%clk 0:02:49]}  Qc7 {[%clk 0:02:48]} 12. Bf4 {[%clk 0:02:47]}  Qd8 {[%clk 0:02:26]} 13. h3 {[%clk 0:02:47]}  Re8 {[%clk 0:02:14]} 14. Bb5 {[%clk 0:02:41]}  Ba6 {[%clk 0:01:38]} 15. dxc5 {[%clk 0:02:38]}  Bxb5 {[%clk 0:01:35]} 16. axb5 {[%clk 0:02:38]}  Nxc5 {[%clk 0:01:29]} 17. Nd4 {[%clk 0:02:37]}  e5 {[%clk 0:01:20]} 18. Nc6 {[%clk 0:02:36]}  Qd6 {[%clk 0:01:13]} 19. Nc4 {[%clk 0:02:34]}  Qe6 {[%clk 0:01:01]} 20. N4xe5 {[%clk 0:02:33]}  Nh5 {[%clk 0:01:00]} 21. Bh2 {[%clk 0:02:29]}  Ne4 {[%clk 0:00:38]} 22. Nd4 {[%clk 0:02:15]}  Qc8 {[%clk 0:00:29]} 23. Nef3 {[%clk 0:02:04]}  Nhf6 {[%clk 0:00:21]} 24. Qc2 {[%clk 0:02:01]}  Qd7 {[%clk 0:00:20]} 25. Ne5 {[%clk 0:01:58]}  Qc8 {[%clk 0:00:17]} 26. Nec6 {[%clk 0:01:51]}  Nd7 {[%clk 0:00:14]} 27. Ne2 {[%clk 0:01:43]}  Ndf6 {[%clk 0:00:13]} 28. Nf4 {[%clk 0:01:41]}  Qf5 {[%clk 0:00:09]} 29. Nd4 {[%clk 0:01:34]}  Qd7 {[%clk 0:00:09]} 30. Qe2 {[%clk 0:01:30]}  Rad8 {[%clk 0:00:08]} 31. Nc6 {[%clk 0:01:29]}  Rc8 {[%clk 0:00:07]} 32. c4 {[%clk 0:01:29]}  Nc5 {[%clk 0:00:05]} 33. Nxd5 {[%clk 0:01:27]}  Nxd5 {[%clk 0:00:05]} 34. Rxd5 {[%clk 0:01:25]}  Qe6 {[%clk 0:00:05]} 35. Rad1 {[%clk 0:01:23]}  Na4 {[%clk 0:00:04]} 36. R1d2 {[%clk 0:01:19]}  Nc5 {[%clk 0:00:04]} 37. Be5 {[%clk 0:01:17]}  Qf5 {[%clk 0:00:02]} 38. Bxg7 {[%clk 0:01:15]}  Qb1+ {[%clk 0:00:02]} 39. Rd1 {[%clk 0:01:15]}  Qxd1+ {[%clk 0:00:02]} 40. Rxd1 {[%clk 0:01:14]}  Kxg7 {[%clk 0:00:03]} 41. Qf3 {[%clk 0:01:12]}  Re6 {[%clk 0:00:02]} 42. Qf4 {[%clk 0:01:09]}  Rf6 {[%clk 0:00:02]} 43. Qe5 {[%clk 0:01:08]}  a4 {[%clk 0:00:02]} 44. Rd6 {[%clk 0:01:07]}  Ne6 {[%clk 0:00:01]} 45. g4 {[%clk 0:01:03]}  a3 {[%clk 0:00:02]} 46. bxa3 {[%clk 0:01:02]}  h6 {[%clk 0:00:01]} 47. h4 {[%clk 0:01:01]}  g5 {[%clk 0:00:01]} 48. f4 {[%clk 0:01:00]}  Ra8 {[%clk 0:00:01]} 49. hxg5 {[%clk 0:00:59]}  hxg5 {[%clk 0:00:02]} 50. fxg5 {[%clk 0:00:58]}  Kg8 {[%clk 0:00:02]} 51. Qxf6 {[%clk 0:00:58]}  Nf4 {[%clk 0:00:02]} 52. exf4 {[%clk 0:00:56]}  Re8 {[%clk 0:00:02]} 53. Rd8 {[%clk 0:00:54]}  Rf8 {[%clk 0:00:02]} 54. Ne7+ {[%clk 0:00:52]}  Kh7 {[%clk 0:00:02]} 55. Qh6# {[%clk 0:00:52]} 1-0


[Site "https://www.chess.com"]

[Event "Titled Tuesday Blitz March 07 Late 2023"]
[White "Golubka, Petro"]
[Black "Karas, Marek"]
[WhiteFideId "14114224"]
[BlackFideId "14928558"]
[WhiteElo "2391"]
[BlackElo "2233"]
[Result "1-0"]
[Round "02"]
[TimeControl "180+2"]
[Date "2023.03.07"]
[WhiteClock "0:00:18"]
[BlackClock "0:00:10"]

1. e4 {[%clk 0:02:27]}  e6 {[%clk 0:02:59]} 2. Qe2 {[%clk 0:02:19]}  c5 {[%clk 0:02:58]} 3. f4 {[%clk 0:02:19]}  Nc6 {[%clk 0:02:58]} 4. Nf3 {[%clk 0:02:20]}  Nf6 {[%clk 0:02:57]} 5. d3 {[%clk 0:02:20]}  d5 {[%clk 0:02:58]} 6. g3 {[%clk 0:02:15]}  Be7 {[%clk 0:02:57]} 7. Bg2 {[%clk 0:02:14]}  b6 {[%clk 0:02:56]} 8. O-O {[%clk 0:02:06]}  Bb7 {[%clk 0:02:56]} 9. e5 {[%clk 0:02:03]}  Nd7 {[%clk 0:02:56]} 10. c4 {[%clk 0:02:03]}  dxc4 {[%clk 0:02:52]} 11. dxc4 {[%clk 0:02:04]}  Qc7 {[%clk 0:02:48]} 12. Nc3 {[%clk 0:02:03]}  a6 {[%clk 0:02:41]} 13. Be3 {[%clk 0:01:46]}  O-O {[%clk 0:02:34]} 14. Rad1 {[%clk 0:01:45]}  Rfd8 {[%clk 0:02:33]} 15. Rd2 {[%clk 0:01:32]}  Nf8 {[%clk 0:02:33]} 16. Rfd1 {[%clk 0:01:32]}  Rxd2 {[%clk 0:02:31]} 17. Rxd2 {[%clk 0:01:33]}  Rd8 {[%clk 0:02:31]} 18. Qd1 {[%clk 0:01:28]}  Rxd2 {[%clk 0:02:30]} 19. Qxd2 {[%clk 0:01:29]}  Qd7 {[%clk 0:02:20]} 20. Qxd7 {[%clk 0:01:20]}  Nxd7 {[%clk 0:02:21]} 21. Kf2 {[%clk 0:01:21]}  Na5 {[%clk 0:02:07]} 22. b3 {[%clk 0:01:19]}  Bc6 {[%clk 0:02:04]} 23. Bf1 {[%clk 0:01:12]}  Kf8 {[%clk 0:02:00]} 24. Bd3 {[%clk 0:01:08]}  h6 {[%clk 0:01:58]} 25. h4 {[%clk 0:01:05]}  Ke8 {[%clk 0:01:52]} 26. h5 {[%clk 0:01:05]}  Bb7 {[%clk 0:01:43]} 27. g4 {[%clk 0:01:04]}  Nc6 {[%clk 0:01:43]} 28. Be4 {[%clk 0:01:03]}  Nd8 {[%clk 0:01:42]} 29. Ke2 {[%clk 0:00:59]}  Bxe4 {[%clk 0:01:42]} 30. Nxe4 {[%clk 0:01:00]}  Nc6 {[%clk 0:01:42]} 31. Bd2 {[%clk 0:00:59]}  b5 {[%clk 0:01:37]} 32. Kd3 {[%clk 0:00:58]}  Kd8 {[%clk 0:01:25]} 33. Bc3 {[%clk 0:00:54]}  Kc7 {[%clk 0:01:21]} 34. f5 {[%clk 0:00:53]}  Bf8 {[%clk 0:01:16]} 35. f6 {[%clk 0:00:45]}  Kd8 {[%clk 0:01:08]} 36. g5 {[%clk 0:00:35]}  gxf6 {[%clk 0:01:05]} 37. exf6 {[%clk 0:00:33]}  hxg5 {[%clk 0:01:00]} 38. Nexg5 {[%clk 0:00:32]}  Ke8 {[%clk 0:00:58]} 39. Ne4 {[%clk 0:00:32]}  b4 {[%clk 0:00:43]} 40. Bd2 {[%clk 0:00:25]}  Nde5+ {[%clk 0:00:41]} 41. Nxe5 {[%clk 0:00:25]}  Nxe5+ {[%clk 0:00:42]} 42. Ke2 {[%clk 0:00:25]}  Ng4 {[%clk 0:00:40]} 43. Kf3 {[%clk 0:00:23]}  Ne5+ {[%clk 0:00:38]} 44. Kg3 {[%clk 0:00:22]}  a5 {[%clk 0:00:18]} 45. h6 {[%clk 0:00:20]}  Bxh6 {[%clk 0:00:18]} 46. Bxh6 {[%clk 0:00:19]}  Nd3 {[%clk 0:00:17]} 47. Be3 {[%clk 0:00:19]}  a4 {[%clk 0:00:15]} 48. Nxc5 {[%clk 0:00:19]}  axb3 {[%clk 0:00:14]} 49. axb3 {[%clk 0:00:18]}  Nb2 {[%clk 0:00:10]} 50. Bd4 {[%clk 0:00:18]} 1-0


[Site "https://www.chess.com"]

[Event "Titled Tuesday Blitz March 07 Late 2023"]
[White "Iskusnyh, Sergei"]
[Black "Rostomyan, Mikayel"]
[WhiteFideId "4120027"]
[BlackFideId "13313754"]
[WhiteElo "2492"]
[BlackElo "2009"]
[Result "1-0"]
[Round "02"]
[TimeControl "180+2"]
[Date "2023.03.07"]
[WhiteClock "0:00:19"]
[BlackClock "0:00:03"]

1. d4 {[%clk 0:03:00]}  Nf6 {[%clk 0:02:59]} 2. c4 {[%clk 0:03:00]}  e6 {[%clk 0:02:58]} 3. g3 {[%clk 0:03:00]}  d5 {[%clk 0:02:55]} 4. Bg2 {[%clk 0:02:58]}  dxc4 {[%clk 0:02:56]} 5. Nf3 {[%clk 0:02:58]}  c5 {[%clk 0:02:55]} 6. O-O {[%clk 0:02:55]}  Nc6 {[%clk 0:02:53]} 7. dxc5 {[%clk 0:02:54]}  Qxd1 {[%clk 0:02:54]} 8. Rxd1 {[%clk 0:02:53]}  Bxc5 {[%clk 0:02:55]} 9. Nbd2 {[%clk 0:02:53]}  c3 {[%clk 0:02:55]} 10. bxc3 {[%clk 0:02:52]}  O-O {[%clk 0:02:56]} 11. Nb3 {[%clk 0:02:52]}  Be7 {[%clk 0:02:56]} 12. Nfd4 {[%clk 0:02:52]}  Bd7 {[%clk 0:02:49]} 13. Nxc6 {[%clk 0:02:40]}  Bxc6 {[%clk 0:02:48]} 14. Bxc6 {[%clk 0:02:39]}  bxc6 {[%clk 0:02:49]} 15. c4 {[%clk 0:02:39]}  a5 {[%clk 0:02:33]} 16. Bd2 {[%clk 0:02:06]}  Bb4 {[%clk 0:02:20]} 17. Nd4 {[%clk 0:01:24]}  Ne4 {[%clk 0:01:40]} 18. Be3 {[%clk 0:01:18]}  Nc3 {[%clk 0:01:27]} 19. Rd2 {[%clk 0:01:02]}  c5 {[%clk 0:01:24]} 20. Nc6 {[%clk 0:00:55]}  Ne4 {[%clk 0:01:11]} 21. Rc2 {[%clk 0:00:52]}  Ra6 {[%clk 0:01:02]} 22. Ne7+ {[%clk 0:00:39]}  Kh8 {[%clk 0:01:02]} 23. Rd1 {[%clk 0:00:38]}  a4 {[%clk 0:00:49]} 24. f3 {[%clk 0:00:33]}  Nc3 {[%clk 0:00:38]} 25. Rd7 {[%clk 0:00:31]}  a3 {[%clk 0:00:31]} 26. Kf1 {[%clk 0:00:26]}  h6 {[%clk 0:00:29]} 27. g4 {[%clk 0:00:23]}  Kh7 {[%clk 0:00:17]} 28. h4 {[%clk 0:00:23]}  Re8 {[%clk 0:00:13]} 29. g5 {[%clk 0:00:23]}  hxg5 {[%clk 0:00:12]} 30. hxg5 {[%clk 0:00:23]}  Raa8 {[%clk 0:00:07]} 31. Kf2 {[%clk 0:00:21]}  Rad8 {[%clk 0:00:04]} 32. Rc1 {[%clk 0:00:20]}  Rxd7 {[%clk 0:00:03]} 33. Rh1# {[%clk 0:00:19]} 1-0


[Site "https://www.chess.com"]

[Event "Titled Tuesday Blitz March 07 Late 2023"]
[White "Oro, Faustino"]
[Black "Vargas Rodriguez, Wilver"]
[WhiteFideId "20000197"]
[BlackFideId "3509672"]
[WhiteElo "1984"]
[BlackElo "2238"]
[Result "1-0"]
[Round "02"]
[TimeControl "180+2"]
[Date "2023.03.07"]
[WhiteClock "0:00:29"]
[BlackClock "0:00:01"]

1. e4 {[%clk 0:03:00]}  c5 {[%clk 0:02:56]} 2. Nf3 {[%clk 0:03:00]}  d6 {[%clk 0:02:56]} 3. Bb5+ {[%clk 0:03:00]}  Bd7 {[%clk 0:02:54]} 4. Bxd7+ {[%clk 0:02:59]}  Qxd7 {[%clk 0:02:55]} 5. O-O {[%clk 0:02:59]}  Nc6 {[%clk 0:02:53]} 6. Re1 {[%clk 0:02:58]}  g6 {[%clk 0:02:50]} 7. c3 {[%clk 0:02:58]}  Bg7 {[%clk 0:02:49]} 8. d4 {[%clk 0:02:59]}  cxd4 {[%clk 0:02:49]} 9. cxd4 {[%clk 0:02:58]}  d5 {[%clk 0:02:48]} 10. e5 {[%clk 0:02:55]}  e6 {[%clk 0:02:46]} 11. Nc3 {[%clk 0:02:55]}  Nge7 {[%clk 0:02:45]} 12. Bg5 {[%clk 0:02:52]}  h6 {[%clk 0:02:42]} 13. Be3 {[%clk 0:02:48]}  O-O {[%clk 0:02:39]} 14. Qd2 {[%clk 0:02:47]}  Kh7 {[%clk 0:02:39]} 15. Ne2 {[%clk 0:02:41]}  Rfc8 {[%clk 0:02:24]} 16. Ng3 {[%clk 0:02:40]}  a5 {[%clk 0:02:16]} 17. Rec1 {[%clk 0:02:19]}  Rc7 {[%clk 0:02:11]} 18. h4 {[%clk 0:02:12]}  Rac8 {[%clk 0:02:02]} 19. h5 {[%clk 0:02:10]}  Nb4 {[%clk 0:02:01]} 20. hxg6+ {[%clk 0:02:09]}  fxg6 {[%clk 0:02:01]} 21. a3 {[%clk 0:01:43]}  Nc2 {[%clk 0:01:21]} 22. Rab1 {[%clk 0:01:42]}  Nxe3 {[%clk 0:01:21]} 23. fxe3 {[%clk 0:01:41]}  Rxc1+ {[%clk 0:01:19]} 24. Rxc1 {[%clk 0:01:42]}  Rxc1+ {[%clk 0:01:19]} 25. Qxc1 {[%clk 0:01:42]}  Qc6 {[%clk 0:01:15]} 26. Qd2 {[%clk 0:01:42]}  a4 {[%clk 0:01:10]} 27. Ne1 {[%clk 0:01:34]}  Nf5 {[%clk 0:01:07]} 28. Ne2 {[%clk 0:01:29]}  h5 {[%clk 0:01:00]} 29. Nd3 {[%clk 0:01:11]}  Bh6 {[%clk 0:00:34]} 30. Nef4 {[%clk 0:01:09]}  Qb6 {[%clk 0:00:25]} 31. Nc5 {[%clk 0:00:52]}  Bxf4 {[%clk 0:00:21]} 32. exf4 {[%clk 0:00:53]}  Qc6 {[%clk 0:00:20]} 33. Qb4 {[%clk 0:00:40]}  b5 {[%clk 0:00:09]} 34. Kf2 {[%clk 0:00:37]}  h4 {[%clk 0:00:08]} 35. Qc3 {[%clk 0:00:35]}  Qc8 {[%clk 0:00:07]} 36. Nxa4 {[%clk 0:00:32]}  Qxc3 {[%clk 0:00:05]} 37. Nxc3 {[%clk 0:00:33]}  Kh6 {[%clk 0:00:05]} 38. Nxb5 {[%clk 0:00:33]}  Kh5 {[%clk 0:00:04]} 39. Kf3 {[%clk 0:00:31]}  g5 {[%clk 0:00:04]} 40. fxg5 {[%clk 0:00:31]}  Kxg5 {[%clk 0:00:05]} 41. a4 {[%clk 0:00:31]}  Ne7 {[%clk 0:00:04]} 42. a5 {[%clk 0:00:30]}  Nc6 {[%clk 0:00:05]} 43. a6 {[%clk 0:00:31]}  Nb4 {[%clk 0:00:02]} 44. a7 {[%clk 0:00:31]}  Nd3 {[%clk 0:00:02]} 45. a8=Q {[%clk 0:00:30]}  Nxb2 {[%clk 0:00:03]} 46. Qg8+ {[%clk 0:00:29]}  Kh5 {[%clk 0:00:02]} 47. Qh7+ {[%clk 0:00:29]}  Kg5 {[%clk 0:00:02]} 48. Qg7+ {[%clk 0:00:29]}  Kh5 {[%clk 0:00:01]} 49. Nd6 {[%clk 0:00:29]} 1-0


[Site "https://www.chess.com"]

[Event "Titled Tuesday Blitz March 07 Late 2023"]
[White "Melikhov, Evgeny V."]
[Black "Poliakova, Varvara"]
[WhiteFideId "4122046"]
[BlackFideId "13518313"]
[WhiteElo "2158"]
[BlackElo "2075"]
[Result "1-0"]
[Round "02"]
[TimeControl "180+2"]
[Date "2023.03.07"]
[WhiteClock "0:00:40"]
[BlackClock "0:00:44"]

1. d4 {[%clk 0:03:00]}  f5 {[%clk 0:02:59]} 2. e4 {[%clk 0:03:00]}  d6 {[%clk 0:02:58]} 3. Nc3 {[%clk 0:02:57]}  Nf6 {[%clk 0:02:58]} 4. exf5 {[%clk 0:02:49]}  Bxf5 {[%clk 0:02:58]} 5. Bd3 {[%clk 0:02:49]}  Bxd3 {[%clk 0:02:57]} 6. Qxd3 {[%clk 0:02:49]}  g6 {[%clk 0:02:57]} 7. Bg5 {[%clk 0:02:43]}  Bg7 {[%clk 0:02:56]} 8. O-O-O {[%clk 0:02:42]}  O-O {[%clk 0:02:51]} 9. h4 {[%clk 0:02:41]}  Nc6 {[%clk 0:02:49]} 10. Nf3 {[%clk 0:02:40]}  Qd7 {[%clk 0:02:45]} 11. a3 {[%clk 0:02:31]}  Qf5 {[%clk 0:02:41]} 12. Qxf5 {[%clk 0:02:29]}  gxf5 {[%clk 0:02:42]} 13. d5 {[%clk 0:02:10]}  Ng4 {[%clk 0:02:38]} 14. dxc6 {[%clk 0:02:06]}  Nxf2 {[%clk 0:02:35]} 15. Nd5 {[%clk 0:02:02]}  Nxh1 {[%clk 0:02:29]} 16. Rxh1 {[%clk 0:01:53]}  e5 {[%clk 0:02:23]} 17. cxb7 {[%clk 0:01:45]}  Rab8 {[%clk 0:02:21]} 18. Nxc7 {[%clk 0:01:44]}  Rxb7 {[%clk 0:02:19]} 19. Ne6 {[%clk 0:01:44]}  Rfb8 {[%clk 0:01:58]} 20. b3 {[%clk 0:01:09]}  e4 {[%clk 0:01:57]} 21. Nxg7 {[%clk 0:01:03]}  exf3 {[%clk 0:01:51]} 22. Nxf5 {[%clk 0:01:03]}  fxg2 {[%clk 0:01:49]} 23. Rg1 {[%clk 0:01:02]}  Rf7 {[%clk 0:01:48]} 24. Ne3 {[%clk 0:00:58]}  Rf2 {[%clk 0:01:16]} 25. Rxg2 {[%clk 0:00:57]}  Rxg2 {[%clk 0:01:12]} 26. Nxg2 {[%clk 0:00:57]}  Kf7 {[%clk 0:01:11]} 27. Nf4 {[%clk 0:00:57]}  Rh8 {[%clk 0:01:08]} 28. Nd5 {[%clk 0:00:54]}  Ke6 {[%clk 0:01:04]} 29. c4 {[%clk 0:00:54]}  h6 {[%clk 0:01:03]} 30. Be3 {[%clk 0:00:50]}  a5 {[%clk 0:01:00]} 31. Kc2 {[%clk 0:00:49]}  Rg8 {[%clk 0:00:58]} 32. Bxh6 {[%clk 0:00:47]}  Rg2+ {[%clk 0:00:57]} 33. Kd3 {[%clk 0:00:47]}  Rg3+ {[%clk 0:00:57]} 34. Be3 {[%clk 0:00:46]}  Ke5 {[%clk 0:00:52]} 35. h5 {[%clk 0:00:45]}  Rh3 {[%clk 0:00:47]} 36. h6 {[%clk 0:00:45]}  Kf5 {[%clk 0:00:45]} 37. b4 {[%clk 0:00:44]}  axb4 {[%clk 0:00:45]} 38. axb4 {[%clk 0:00:45]}  Rh1 {[%clk 0:00:45]} 39. b5 {[%clk 0:00:44]}  Ke6 {[%clk 0:00:45]} 40. b6 {[%clk 0:00:42]}  Kf7 {[%clk 0:00:44]} 41. b7 {[%clk 0:00:41]}  Rb1 {[%clk 0:00:44]} 42. Bb6 {[%clk 0:00:40]} 1-0


[Site "https://www.chess.com"]

[Event "Titled Tuesday Blitz March 07 Late 2023"]
[White "Battlecruiser_Operational"]
[Black "Ozates, Tuna"]
[BlackFideId "6354521"]
[WhiteElo "2253"]
[BlackElo "2151"]
[Result "0-1"]
[Round "02"]
[TimeControl "180+2"]
[Date "2023.03.07"]
[WhiteClock "0:00:01"]
[BlackClock "0:00:18"]

1. Nf3 {[%clk 0:02:58]}  c5 {[%clk 0:03:00]} 2. e3 {[%clk 0:02:55]}  g6 {[%clk 0:02:59]} 3. c4 {[%clk 0:02:54]}  Bg7 {[%clk 0:02:59]} 4. d4 {[%clk 0:02:53]}  Nf6 {[%clk 0:02:59]} 5. Nc3 {[%clk 0:02:53]}  O-O {[%clk 0:02:59]} 6. Be2 {[%clk 0:02:53]}  d6 {[%clk 0:02:54]} 7. O-O {[%clk 0:02:47]}  Nc6 {[%clk 0:02:53]} 8. d5 {[%clk 0:02:42]}  Nb8 {[%clk 0:02:44]} 9. e4 {[%clk 0:02:38]}  e6 {[%clk 0:02:42]} 10. h3 {[%clk 0:02:21]}  exd5 {[%clk 0:02:42]} 11. cxd5 {[%clk 0:02:22]}  Re8 {[%clk 0:02:42]} 12. Qc2 {[%clk 0:02:18]}  Na6 {[%clk 0:02:41]} 13. a3 {[%clk 0:02:17]}  Nc7 {[%clk 0:02:41]} 14. Bg5 {[%clk 0:02:09]}  h6 {[%clk 0:02:41]} 15. Bh4 {[%clk 0:02:07]}  Rb8 {[%clk 0:02:40]} 16. Rfe1 {[%clk 0:01:55]}  b5 {[%clk 0:02:40]} 17. b4 {[%clk 0:01:54]}  c4 {[%clk 0:02:29]} 18. Bf1 {[%clk 0:01:33]}  g5 {[%clk 0:02:26]} 19. Bg3 {[%clk 0:01:32]}  Nh5 {[%clk 0:02:26]} 20. Bh2 {[%clk 0:01:31]}  g4 {[%clk 0:02:24]} 21. hxg4 {[%clk 0:01:24]}  Bxg4 {[%clk 0:02:25]} 22. Nd2 {[%clk 0:01:22]}  Bd4 {[%clk 0:02:21]} 23. Ne2 {[%clk 0:00:52]}  Bxa1 {[%clk 0:02:10]} 24. Rxa1 {[%clk 0:00:52]}  Qf6 {[%clk 0:02:09]} 25. Re1 {[%clk 0:00:50]}  Bxe2 {[%clk 0:02:06]} 26. Rxe2 {[%clk 0:00:45]}  Nf4 {[%clk 0:02:07]} 27. Re3 {[%clk 0:00:45]}  Ng6 {[%clk 0:01:58]} 28. Rf3 {[%clk 0:00:34]}  Qg7 {[%clk 0:01:57]} 29. Bxd6 {[%clk 0:00:32]}  Rbc8 {[%clk 0:01:57]} 30. Bc5 {[%clk 0:00:29]}  Red8 {[%clk 0:01:39]} 31. Rg3 {[%clk 0:00:26]}  a6 {[%clk 0:01:34]} 32. Nf3 {[%clk 0:00:18]}  Ne8 {[%clk 0:01:26]} 33. Nd4 {[%clk 0:00:15]}  Qe5 {[%clk 0:01:16]} 34. Nc6 {[%clk 0:00:11]}  Rxc6 {[%clk 0:01:13]} 35. dxc6 {[%clk 0:00:10]}  Nf6 {[%clk 0:01:14]} 36. Bb6 {[%clk 0:00:07]}  Rc8 {[%clk 0:01:08]} 37. c7 {[%clk 0:00:07]}  Qd6 {[%clk 0:01:06]} 38. e5 {[%clk 0:00:05]}  Qxe5 {[%clk 0:00:50]} 39. Rxg6+ {[%clk 0:00:04]}  fxg6 {[%clk 0:00:48]} 40. Qxg6+ {[%clk 0:00:05]}  Kh8 {[%clk 0:00:46]} 41. Qxh6+ {[%clk 0:00:06]}  Nh7 {[%clk 0:00:46]} 42. Be3 {[%clk 0:00:05]}  Rxc7 {[%clk 0:00:43]} 43. Bf4 {[%clk 0:00:05]}  Qg7 {[%clk 0:00:40]} 44. Qxa6 {[%clk 0:00:05]}  Rf7 {[%clk 0:00:31]} 45. Bc1 {[%clk 0:00:04]}  Qd4 {[%clk 0:00:26]} 46. Qxb5 {[%clk 0:00:03]}  Qxf2+ {[%clk 0:00:26]} 47. Kh2 {[%clk 0:00:03]}  Qxf1 {[%clk 0:00:20]} 48. Bb2+ {[%clk 0:00:03]}  Nf6 {[%clk 0:00:19]} 49. Qh5+ {[%clk 0:00:02]}  Rh7 {[%clk 0:00:19]} 50. Bxf6+ {[%clk 0:00:01]}  Qxf6 {[%clk 0:00:18]} 0-1


[Site "https://www.chess.com"]